Workbook

Sheet Spreadsheet15.1
B9: Parameters
B10: Funding spread | D10: 100
B11: Party Spread | D11: 100
B12: Counterparty Spread | D12: 200
B13: Counterparty LGD | D13: 0.6
B14: Party LGD | D14: 0.6
B16: Calculations
B17: FVA | D17: CVA, DVA, FVA
B18: FCA | C18: =-SUMPRODUCT(E26:E208,H26:H208) -> -0.06898371953 | D18: CVA | E18: =-CntrptyLGD*SUMPRODUCT(F26:F208,H26:H208) -> -0.1309053384
B19: FBA | C19: =-SUMPRODUCT(E26:E208,I26:I208) -> 0.1376522742 | D19: DVA | E19: =-PartyLGD*SUMPRODUCT(G26:G208,I26:I208) -> 0.1356883339
B20: FVA | C20: =C18+C19 -> 0.06866855469 | D20: FCA | E20: =C18 -> -0.06898371953
B21: FVA | C21: =-SUMPRODUCT(C26:C208,J26:J208,D25:D207)*FundingSpread/10000 -> 0.06867798741 | D21: Total | E21: =E20+E19+E18 -> -0.06420072403
C24: Interval | D24: Surv Zero LGD | E24: PD Zero LGD | F24: Cntprty PD | G24: Party PD | H24: EE | I24: NEE | J24: EFV
B25: 0 | D25: =EXP(-B25*FundingSpread/10000) -> 1 | H25: 0 | I25: 0 | J25: =H25+I25 -> 0
B26: 0.002747252747 | C26: =B26-B25 -> 0.002747252747 | D26: 0.9999725278 | E26: =D25-D26 -> 2.747215011e-05 | F26: =EXP(-B25*CntrptySpread/10000/CntrptyLGD)-EXP(-B26*CntrptySpread/10000/CntrptyLGD) -> 9.15708987e-05 | G26: =EXP(-B25*PartySpread/10000/PartyLGD)-EXP(-B26*PartySpread/10000/PartyLGD) -> 4.578649755e-05 | H26: 0.1568724551 | I26: -0.1539200162 | J26: =H26+I26 -> 0.0029524389
B27: 0.02747252747 | C27: =B27-B26 -> 0.02472527473 | D27: 0.9997253125 | E27: =D26-D27 -> 0.0002472153911 | F27: 0.0008237608451 | G27: 0.0004119841514 | H27: 0.4470012033 | I27: -0.5113133798 | J27: -0.0643121765
B28: 0.05494505495 | C28: 0.02747252747 | D28: 0.9994507004 | E28: 0.0002746120879 | F28: 0.0009144939116 | G28: 0.0004575610949 | H28: 0.6308559604 | I28: -0.7616084698 | J28: -0.1307525094
B29: 0.08241758242 | C29: 0.02747252747 | D29: 0.9991761637 | E29: 0.0002745366554 | F29: 0.0009136568463 | G29: 0.0004573516369 | H29: 0.7273090761 | I29: -0.9865292219 | J29: -0.2592201458
B30: 0.1098901099 | C30: 0.02747252747 | D30: 0.9989017025 | E30: 0.0002744612436 | F30: 0.0009128205472 | G30: 0.0004571422747 | H30: 0.8413134905 | I30: -1.149006669 | J30: -0.3076931789
B31: 0.1373626374 | C31: 0.02747252747 | D31: 0.9986273166 | E31: 0.0002743858525 | F31: 0.0009119850136 | G31: 0.0004569330084 | H31: 0.9047569669 | I31: -1.292567025 | J31: -0.387810058
B32: 0.1648351648 | C32: 0.02747252747 | D32: 0.9983530061 | E32: 0.0002743104822 | F32: 0.0009111502448 | G32: 0.0004567238379 | H32: 0.9446871756 | I32: -1.42009886 | J32: -0.4754116841
B33: 0.1923076923 | C33: 0.02747252747 | D33: 0.998078771 | E33: 0.0002742351325 | F33: 0.00091031624 | G33: 0.0004565147631 | H33: 0.9792141324 | I33: -1.570514869 | J33: -0.5913007363
B34: 0.2197802198 | C34: 0.02747252747 | D34: 0.9978046112 | E34: 0.0002741598035 | F34: 0.0009094829987 | G34: 0.0004563057841 | H34: 0.9782454627 | I34: -1.682177967 | J34: -0.7039325041
B35: 0.2472527473 | C35: 0.02747252747 | D35: 0.9975305267 | E35: 0.0002740844952 | F35: 0.00090865052 | G35: 0.0004560969007 | H35: 0.9805089588 | I35: -1.816323846 | J35: -0.8358148869
B36: 0.2747252747 | C36: 0.02747252747 | D36: 0.9972565175 | E36: 0.0002740092076 | F36: 0.0009078188033 | G36: 0.0004558881129 | H36: 1.084466909 | I36: -1.891524356 | J36: -0.8070574469
B37: 0.3021978022 | C37: 0.02747252747 | D37: 0.9969825836 | E37: 0.0002739339407 | F37: 0.000906987848 | G37: 0.0004556794207 | H37: 1.091820446 | I37: -2.024038464 | J37: -0.9322180172
B38: 0.3296703297 | C38: 0.02747252747 | D38: 0.9967087249 | E38: 0.0002738586945 | F38: 0.0009061576532 | G38: 0.0004554708241 | H38: 1.090906177 | I38: -2.136455894 | J38: -1.045549717
B39: 0.3571428571 | C39: 0.02747252747 | D39: 0.9964349414 | E39: 0.0002737834689 | F39: 0.0009053282183 | G39: 0.0004552623229 | H39: 1.107829685 | I39: -2.273742657 | J39: -1.165912973
B40: 0.3846153846 | C40: 0.02747252747 | D40: 0.9961612331 | E40: 0.000273708264 | F40: 0.0009044995427 | G40: 0.0004550539171 | H40: 1.134297554 | I40: -2.417854787 | J40: -1.283557233
B41: 0.4120879121 | C41: 0.02747252747 | D41: 0.9958876001 | E41: 0.0002736330798 | F41: 0.0009036716255 | G41: 0.0004548456068 | H41: 1.196140875 | I41: -2.546615708 | J41: -1.350474834
B42: 0.4395604396 | C42: 0.02747252747 | D42: 0.9956140421 | E42: 0.0002735579162 | F42: 0.0009028444662 | G42: 0.0004546373919 | H42: 1.220716599 | I42: -2.650511005 | J42: -1.429794406
B43: 0.467032967 | C43: 0.02747252747 | D43: 0.9953405594 | E43: 0.0002734827732 | F43: 0.000902018064 | G43: 0.0004544292722 | H43: 1.203356907 | I43: -2.751722493 | J43: -1.548365586
B44: 0.4945054945 | C44: 0.02747252747 | D44: 0.9950671517 | E44: 0.0002734076509 | F44: 0.0009011924183 | G44: 0.0004542212478 | H44: 1.18879909 | I44: -2.838399562 | J44: -1.649600472
B45: 0.521978022 | C45: 0.02747252747 | D45: 0.9947938192 | E45: 0.0002733325492 | F45: 0.0009003675282 | G45: 0.0004540133187 | H45: 1.465832597 | I45: -2.459953566 | J45: -0.9941209684
B46: 0.5494505495 | C46: 0.02747252747 | D46: 0.9945205617 | E46: 0.0002732574682 | F46: 0.0008995433932 | G46: 0.0004538054847 | H46: 1.497036712 | I46: -2.528082071 | J46: -1.031045359
B47: 0.5769230769 | C47: 0.02747252747 | D47: 0.9942473793 | E47: 0.0002731824078 | F47: 0.0008987200126 | G47: 0.0004535977459 | H47: 1.501480507 | I47: -2.63129516 | J47: -1.129814652
B48: 0.6043956044 | C48: 0.02747252747 | D48: 0.9939742719 | E48: 0.000273107368 | F48: 0.0008978973857 | G48: 0.0004533901021 | H48: 1.505198682 | I48: -2.688914608 | J48: -1.183715926
B49: 0.6318681319 | C49: 0.02747252747 | D49: 0.9937012396 | E49: 0.0002730323488 | F49: 0.0008970755117 | G49: 0.0004531825534 | H49: 1.514340969 | I49: -2.839261741 | J49: -1.324920772
B50: 0.6593406593 | C50: 0.02747252747 | D50: 0.9934282822 | E50: 0.0002729573502 | F50: 0.00089625439 | G50: 0.0004529750998 | H50: 1.49839352 | I50: -2.913155737 | J50: -1.414762217
B51: 0.6868131868 | C51: 0.02747252747 | D51: 0.9931553998 | E51: 0.0002728823722 | F51: 0.0008954340199 | G51: 0.0004527677411 | H51: 1.48283752 | I51: -3.016622139 | J51: -1.533784619
B52: 0.7142857143 | C52: 0.02747252747 | D52: 0.9928825924 | E52: 0.0002728074148 | F52: 0.0008946144007 | G52: 0.0004525604773 | H52: 1.469846542 | I52: -3.122406965 | J52: -1.652560423
B53: 0.7417582418 | C53: 0.02747252747 | D53: 0.99260986 | E53: 0.000272732478 | F53: 0.0008937955318 | G53: 0.0004523533084 | H53: 1.435685562 | I53: -3.224009347 | J53: -1.788323786
B54: 0.7692307692 | C54: 0.02747252747 | D54: 0.9923372024 | E54: 0.0002726575618 | F54: 0.0008929774123 | G54: 0.0004521462343 | H54: 1.522788043 | I54: -3.242004736 | J54: -1.719216693
B55: 0.7967032967 | C55: 0.02747252747 | D55: 0.9920646197 | E55: 0.0002725826662 | F55: 0.0008921600418 | G55: 0.000451939255 | H55: 1.520594316 | I55: -3.318829832 | J55: -1.798235516
B56: 0.8241758242 | C56: 0.02747252747 | D56: 0.9917921119 | E56: 0.0002725077911 | F56: 0.0008913434194 | G56: 0.0004517323705 | H56: 1.516901767 | I56: -3.451656249 | J56: -1.934754482
B57: 0.8516483516 | C57: 0.02747252747 | D57: =EXP(-B57*FundingSpread/10000) -> 0.991519679 | E57: 0.0002724329366 | F57: 0.0008905275444 | G57: 0.0004515255807 | H57: 1.53247327 | I57: -3.535005428 | J57: -2.002532158
B58: 0.8791208791 | C58: 0.02747252747 | D58: 0.9912473209 | E58: 0.0002723581027 | F58: =EXP(-B57*CntrptySpread/10000/CntrptyLGD)-EXP(-B58*CntrptySpread/10000/CntrptyLGD) -> 0.0008897124163 | G58: =EXP(-B57*PartySpread/10000/PartyLGD)-EXP(-B58*PartySpread/10000/PartyLGD) -> 0.0004513188855 | H58: 1.520519551 | I58: -3.63219251 | J58: -2.111672959
B59: 0.9065934066 | C59: 0.02747252747 | D59: 0.9909750376 | E59: 0.0002722832893 | F59: 0.0008888980343 | G59: 0.000451112285 | H59: 1.463426214 | I59: -3.711515366 | J59: -2.248089152
B60: 0.9340659341 | C60: 0.02747252747 | D60: 0.9907028291 | E60: 0.0002722084965 | F60: 0.0008880843977 | G60: 0.000450905779 | H60: 1.441053892 | I60: -3.763090935 | J60: -2.322037043
B61: 0.9615384615 | C61: 0.02747252747 | D61: 0.9904306954 | E61: 0.0002721337242 | F61: 0.0008872715059 | G61: 0.0004506993676 | H61: 1.421347305 | I61: -3.820953035 | J61: -2.39960573
B62: 0.989010989 | C62: 0.02747252747 | D62: 0.9901586364 | E62: 0.0002720589724 | F62: 0.0008864593581 | G62: 0.0004504930507 | H62: 1.397729237 | I62: -3.896882596 | J62: -2.499153359
B63: 1.016483516 | C63: 0.02747252747 | D63: 0.9898866522 | E63: 0.0002719842412 | F63: 0.0008856479537 | G63: 0.0004502868282 | H63: 1.614308457 | I63: -3.46976735 | J63: -1.855458893
B64: 1.043956044 | C64: 0.02747252747 | D64: 0.9896147426 | E64: 0.0002719095305 | F64: 0.000884837292 | G64: 0.0004500807001 | H64: 1.600655484 | I64: -3.500030852 | J64: -1.899375368
B65: 1.071428571 | C65: 0.02747252747 | D65: 0.9893429078 | E65: 0.0002718348404 | F65: 0.0008840273723 | G65: 0.0004498746663 | H65: 1.620135661 | I65: -3.534181135 | J65: -1.914045474
B66: 1.098901099 | C66: 0.02747252747 | D66: 0.9890711476 | E66: 0.0002717601707 | F66: 0.000883218194 | G66: 0.0004496687269 | H66: 1.63880609 | I66: -3.601220446 | J66: -1.962414355
B67: 1.126373626 | C67: 0.02747252747 | D67: 0.9887994621 | E67: 0.0002716855216 | F67: 0.0008824097564 | G67: 0.0004494628818 | H67: 1.636987905 | I67: -3.667524242 | J67: -2.030536337
B68: 1.153846154 | C68: 0.02747252747 | D68: 0.9885278512 | E68: 0.000271610893 | F68: 0.0008816020587 | G68: 0.0004492571309 | H68: 1.59224397 | I68: -3.70990815 | J68: -2.117664179
B69: 1.181318681 | C69: 0.02747252747 | D69: 0.9882563149 | E69: 0.0002715362849 | F69: 0.0008807951004 | G69: 0.0004490514741 | H69: 1.621290056 | I69: -3.753731047 | J69: -2.132440991
B70: 1.208791209 | C70: 0.02747252747 | D70: 0.9879848532 | E70: 0.0002714616972 | F70: 0.0008799888806 | G70: 0.0004488459115 | H70: 1.608031933 | I70: -3.835780048 | J70: -2.227748115
B71: 1.236263736 | C71: 0.02747252747 | D71: 0.9877134661 | E71: 0.0002713871301 | F71: 0.0008791833989 | G71: 0.0004486404431 | H71: 1.625436073 | I71: -3.921849251 | J71: -2.296413178
B72: 1.263736264 | C72: 0.02747252747 | D72: 0.9874421535 | E72: 0.0002713125834 | F72: 0.0008783786544 | G72: 0.0004484350686 | H72: 1.671445074 | I72: -3.923199589 | J72: -2.251754514
B73: 1.291208791 | C73: 0.02747252747 | D73: 0.9871709155 | E73: 0.0002712380572 | F73: 0.0008775746466 | G73: 0.0004482297882 | H73: 1.668202061 | I73: -3.990280331 | J73: -2.32207827
B74: 1.318681319 | C74: 0.02747252747 | D74: 0.9868997519 | E74: 0.0002711635515 | F74: 0.0008767713746 | G74: 0.0004480246018 | H74: 1.620920612 | I74: -4.041096356 | J74: -2.420175744
B75: 1.346153846 | C75: 0.02747252747 | D75: 0.9866286628 | E75: 0.0002710890663 | F75: 0.0008759688379 | G75: 0.0004478195093 | H75: 1.606151317 | I75: -4.093015232 | J75: -2.486863915
B76: 1.373626374 | C76: 0.02747252747 | D76: 0.9863576482 | E76: 0.0002710146015 | F76: 0.0008751670359 | G76: 0.0004476145106 | H76: 1.615681603 | I76: -4.153196835 | J76: -2.537515231
B77: 1.401098901 | C77: 0.02747252747 | D77: 0.9860867081 | E77: 0.0002709401571 | F77: 0.0008743659677 | G77: 0.0004474096059 | H77: 1.63002649 | I77: -4.205469909 | J77: -2.575443418
B78: 1.428571429 | C78: 0.02747252747 | D78: 0.9858158424 | E78: 0.0002708657332 | F78: 0.0008735656328 | G78: 0.0004472047949 | H78: 1.636460689 | I78: -4.246242062 | J78: -2.609781374
B79: 1.456043956 | C79: 0.02747252747 | D79: 0.985545051 | E79: 0.0002707913298 | F79: 0.0008727660304 | G79: 0.0004470000776 | H79: 1.649052127 | I79: -4.297466283 | J79: -2.648414155
B80: 1.483516484 | C80: 0.02747252747 | D80: 0.9852743341 | E80: 0.0002707169468 | F80: 0.00087196716 | G80: 0.0004467954541 | H80: 1.661223269 | I80: -4.346033632 | J80: -2.684810364
B81: 1.510989011 | C81: 0.02747252747 | D81: 0.9850036915 | E81: 0.0002706425842 | F81: 0.0008711690207 | G81: 0.0004465909243 | H81: 1.836032421 | I81: -3.891198573 | J81: -2.055166152
B82: 1.538461538 | C82: 0.02747252747 | D82: 0.9847331232 | E82: 0.0002705682421 | F82: 0.0008703716121 | G82: 0.0004463864881 | H82: 1.881533011 | I82: -3.963305196 | J82: -2.081772185
B83: 1.565934066 | C83: 0.02747252747 | D83: 0.9844626293 | E83: 0.0002704939204 | F83: 0.0008695749333 | G83: 0.0004461821454 | H83: 1.896267679 | I83: -4.028641374 | J83: -2.132373695
B84: 1.593406593 | C84: 0.02747252747 | D84: 0.9841922097 | E84: 0.000270419619 | F84: 0.0008687789838 | G84: 0.0004459778963 | H84: 1.89724491 | I84: -4.113126388 | J84: -2.215881478
B85: 1.620879121 | C85: 0.02747252747 | D85: 0.9839218644 | E85: 0.0002703453381 | F85: 0.0008679837628 | G85: 0.0004457737407 | H85: 1.889624817 | I85: -4.174066586 | J85: -2.284441768
B86: 1.648351648 | C86: 0.02747252747 | D86: 0.9836515933 | E86: 0.0002702710776 | F86: 0.0008671892697 | G86: 0.0004455696786 | H86: 1.938649232 | I86: -4.23184683 | J86: -2.293197598
B87: 1.675824176 | C87: 0.02747252747 | D87: 0.9833813965 | E87: 0.0002701968376 | F87: 0.0008663955038 | G87: 0.0004453657099 | H87: 1.908190091 | I87: -4.252839994 | J87: -2.344649903
B88: 1.703296703 | C88: 0.02747252747 | D88: 0.9831112738 | E88: 0.0002701226178 | F88: 0.0008656024645 | G88: 0.0004451618345 | H88: 1.890103032 | I88: -4.277135422 | J88: -2.387032389
B89: 1.730769231 | C89: 0.02747252747 | D89: =EXP(-B89*FundingSpread/10000) -> 0.9828412254 | E89: 0.0002700484185 | F89: 0.0008648101511 | G89: 0.0004449580525 | H89: 1.914384734 | I89: -4.274744478 | J89: -2.360359744
B90: 1.758241758 | C90: 0.02747252747 | D90: 0.9825712512 | E90: 0.0002699742396 | F90: =EXP(-B89*CntrptySpread/10000/CntrptyLGD)-EXP(-B90*CntrptySpread/10000/CntrptyLGD) -> 0.0008640185629 | G90: =EXP(-B89*PartySpread/10000/PartyLGD)-EXP(-B90*PartySpread/10000/PartyLGD) -> 0.0004447543638 | H90: 1.92566321 | I90: -4.241627082 | J90: =H90+I90 -> -2.315963872
B91: 1.785714286 | C91: =B91-B90 -> 0.02747252747 | D91: 0.9823013511 | E91: =D90-D91 -> 0.000269900081 | F91: 0.0008632276993 | G91: 0.0004445507683 | H91: 1.909601318 | I91: -4.292571431 | J91: -2.382970113
B92: 1.813186813 | C92: 0.02747252747 | D92: 0.9820315252 | E92: 0.0002698259428 | F92: 0.0008624375596 | G92: 0.000444347266 | H92: 1.897175335 | I92: -4.323436281 | J92: -2.426260946
B93: 1.840659341 | C93: 0.02747252747 | D93: 0.9817617733 | E93: 0.000269751825 | F93: 0.0008616481431 | G93: 0.0004441438569 | H93: 1.920830258 | I93: -4.367489354 | J93: -2.446659096
B94: 1.868131868 | C94: 0.02747252747 | D94: 0.9814920956 | E94: 0.0002696777276 | F94: 0.0008608594492 | G94: 0.0004439405408 | H94: 1.878792649 | I94: -4.41789579 | J94: -2.539103141
B95: 1.895604396 | C95: 0.02747252747 | D95: 0.981222492 | E95: 0.0002696036504 | F95: 0.0008600714772 | G95: 0.0004437373179 | H95: 1.891604629 | I95: -4.451665128 | J95: -2.560060499
B96: 1.923076923 | C96: 0.02747252747 | D96: 0.9809529624 | E96: 0.0002695295937 | F96: 0.0008592842265 | G96: 0.000443534188 | H96: 1.869557154 | I96: -4.455741347 | J96: -2.586184193
B97: 1.950549451 | C97: 0.02747252747 | D97: 0.9806835068 | E97: 0.0002694555573 | F97: 0.0008584976964 | G97: 0.000443331151 | H97: 1.874358394 | I97: -4.507116521 | J97: -2.632758127
B98: 1.978021978 | C98: 0.02747252747 | D98: 0.9804141253 | E98: 0.0002693815412 | F98: 0.0008577118862 | G98: 0.000443128207 | H98: 1.862476453 | I98: -4.524649365 | J98: -2.662172912
B99: 2.005494505 | C99: 0.02747252747 | D99: 0.9801448177 | E99: 0.0002693075454 | F99: 0.0008569267953 | G99: 0.000442925356 | H99: 1.903547585 | I99: -4.358954986 | J99: -2.4554074
B100: 2.032967033 | C100: 0.02747252747 | D100: 0.9798755841 | E100: 0.00026923357 | F100: 0.000856142423 | G100: 0.0004427225977 | H100: 2.004759038 | I100: -4.103388852 | J100: -2.098629814
B101: 2.06043956 | C101: 0.02747252747 | D101: 0.9796064245 | E101: 0.0002691596149 | F101: 0.0008553587686 | G101: 0.0004425199323 | H101: 2.005894524 | I101: -4.152957536 | J101: -2.147063012
B102: 2.087912088 | C102: 0.02747252747 | D102: 0.9793373389 | E102: 0.0002690856801 | F102: 0.0008545758316 | G102: 0.0004423173597 | H102: 2.027006384 | I102: -4.186638515 | J102: -2.159632131
B103: 2.115384615 | C103: 0.02747252747 | D103: 0.9790683271 | E103: 0.0002690117656 | F103: 0.0008537936112 | G103: 0.0004421148798 | H103: 2.005783791 | I103: -4.207777506 | J103: -2.201993715
B104: 2.142857143 | C104: 0.02747252747 | D104: 0.9787993892 | E104: 0.0002689378714 | F104: 0.0008530121068 | G104: 0.0004419124926 | H104: 2.058717765 | I104: -4.186539461 | J104: -2.127821696
B105: 2.17032967 | C105: 0.02747252747 | D105: 0.9785305252 | E105: 0.0002688639975 | F105: 0.0008522313178 | G105: 0.000441710198 | H105: 2.054808359 | I105: -4.17760633 | J105: -2.122797971
B106: 2.197802198 | C106: 0.02747252747 | D106: 0.9782617351 | E106: 0.000268790144 | F106: 0.0008514512434 | G106: 0.000441507996 | H106: 2.065805726 | I106: -4.183875129 | J106: -2.118069402
B107: 2.225274725 | C107: 0.02747252747 | D107: 0.9779930188 | E107: 0.0002687163106 | F107: 0.000850671883 | G107: 0.0004413058866 | H107: 2.059718128 | I107: -4.196422918 | J107: -2.13670479
B108: 2.252747253 | C108: 0.02747252747 | D108: 0.9777243763 | E108: 0.0002686424976 | F108: 0.0008498932361 | G108: 0.0004411038697 | H108: 2.081083422 | I108: -4.212953006 | J108: -2.131869584
B109: 2.28021978 | C109: 0.02747252747 | D109: 0.9774558076 | E109: 0.0002685687049 | F109: 0.0008491153018 | G109: 0.0004409019453 | H109: 2.083087018 | I109: -4.152714752 | J109: -2.069627734
B110: 2.307692308 | C110: 0.02747252747 | D110: 0.9771873126 | E110: 0.0002684949324 | F110: 0.0008483380796 | G110: 0.0004407001134 | H110: 2.077630081 | I110: -4.172301629 | J110: -2.094671548
B111: 2.335164835 | C111: 0.02747252747 | D111: 0.9769188914 | E111: 0.0002684211802 | F111: 0.0008475615688 | G111: 0.0004404983738 | H111: 2.021206606 | I111: -4.191435206 | J111: -2.170228601
B112: 2.362637363 | C112: 0.02747252747 | D112: 0.976650544 | E112: 0.0002683474482 | F112: 0.0008467857688 | G112: 0.0004402967266 | H112: 2.007257744 | I112: -4.206273863 | J112: -2.199016119
B113: 2.39010989 | C113: 0.02747252747 | D113: 0.9763822703 | E113: 0.0002682737365 | F113: 0.0008460106789 | G113: 0.0004400951717 | H113: 1.964755832 | I113: -4.221216783 | J113: -2.256460951
B114: 2.417582418 | C114: 0.02747252747 | D114: 0.9761140702 | E114: 0.0002682000451 | F114: 0.0008452362985 | G114: 0.000439893709 | H114: 1.936318293 | I114: -4.245454922 | J114: -2.30913663
B115: 2.445054945 | C115: 0.02747252747 | D115: 0.9758459438 | E115: 0.0002681263739 | F115: 0.0008444626269 | G115: 0.0004396923386 | H115: 1.915961951 | I115: -4.269188618 | J115: -2.353226666
B116: 2.472527473 | C116: 0.02747252747 | D116: 0.9755778911 | E116: 0.0002680527229 | F116: 0.0008436896634 | G116: 0.0004394910603 | H116: 1.863411807 | I116: -4.275054997 | J116: -2.411643191
B117: 2.5 | C117: 0.02747252747 | D117: 0.975309912 | E117: 0.0002679790922 | F117: 0.0008429174075 | G117: 0.0004392898742 | H117: 1.858412743 | I117: -4.310891503 | J117: -2.45247876
B118: 2.527472527 | C118: 0.02747252747 | D118: 0.9750420065 | E118: 0.0002679054816 | F118: 0.0008421458585 | G118: 0.0004390887802 | H118: 2.00539843 | I118: -3.84915304 | J118: -1.84375461
B119: 2.554945055 | C119: 0.02747252747 | D119: 0.9747741747 | E119: 0.0002678318913 | F119: 0.0008413750156 | G119: 0.0004388877782 | H119: 2.006002355 | I119: -3.916540218 | J119: -1.910537863
B120: 2.582417582 | C120: 0.02747252747 | D120: 0.9745064163 | E120: 0.0002677583213 | F120: 0.0008406048784 | G120: 0.0004386868683 | H120: 2.019207465 | I120: -3.929145013 | J120: -1.909937548
B121: 2.60989011 | C121: 0.02747252747 | D121: =EXP(-B121*FundingSpread/10000) -> 0.9742387316 | E121: 0.0002676847714 | F121: 0.000839835446 | G121: 0.0004384860503 | H121: 1.986987164 | I121: -3.934627013 | J121: -1.947639849
B122: 2.637362637 | C122: 0.02747252747 | D122: 0.9739711203 | E122: 0.0002676112417 | F122: =EXP(-B121*CntrptySpread/10000/CntrptyLGD)-EXP(-B122*CntrptySpread/10000/CntrptyLGD) -> 0.000839066718 | G122: =EXP(-B121*PartySpread/10000/PartyLGD)-EXP(-B122*PartySpread/10000/PartyLGD) -> 0.0004382853243 | H122: 2.007368282 | I122: -3.935972218 | J122: -1.928603936
B123: 2.664835165 | C123: 0.02747252747 | D123: 0.9737035826 | E123: 0.0002675377322 | F123: 0.0008382986936 | G123: 0.0004380846901 | H123: 2.011664702 | I123: -3.938748103 | J123: -1.927083401
B124: 2.692307692 | C124: 0.02747252747 | D124: 0.9734361183 | E124: 0.000267464243 | F124: 0.0008375313722 | G124: 0.0004378841478 | H124: 2.021516525 | I124: -3.929803987 | J124: -1.908287462
B125: 2.71978022 | C125: 0.02747252747 | D125: 0.9731687276 | E125: 0.0002673907739 | F125: 0.0008367647531 | G125: 0.0004376836973 | H125: 1.980181943 | I125: -3.924444372 | J125: -1.944262429
B126: 2.747252747 | C126: 0.02747252747 | D126: 0.9729014102 | E126: 0.0002673173249 | F126: 0.0008359988358 | G126: 0.0004374833386 | H126: 1.974345382 | I126: -3.906099626 | J126: -1.931754243
B127: 2.774725275 | C127: 0.02747252747 | D127: 0.9726341664 | E127: 0.0002672438962 | F127: 0.0008352336195 | G127: 0.0004372830715 | H127: 1.995385431 | I127: -3.84469843 | J127: -1.849312999
B128: 2.802197802 | C128: 0.02747252747 | D128: 0.9723669959 | E128: 0.0002671704876 | F128: 0.0008344691037 | G128: 0.0004370828962 | H128: 1.975839955 | I128: -3.85410449 | J128: -1.878264535
B129: 2.82967033 | C129: 0.02747252747 | D129: 0.9720998988 | E129: 0.0002670970992 | F129: 0.0008337052876 | G129: 0.0004368828124 | H129: 1.942573494 | I129: -3.858447092 | J129: -1.915873598
B130: 2.857142857 | C130: 0.02747252747 | D130: 0.971832875 | E130: 0.000267023731 | F130: 0.0008329421707 | G130: 0.0004366828203 | H130: 1.911703487 | I130: -3.853610638 | J130: -1.941907151
B131: 2.884615385 | C131: 0.02747252747 | D131: 0.9715659247 | E131: 0.0002669503829 | F131: 0.0008321797523 | G131: 0.0004364829197 | H131: 1.876590647 | I131: -3.861379081 | J131: -1.984788435
B132: 2.912087912 | C132: 0.02747252747 | D132: 0.9712990476 | E132: 0.0002668770549 | F132: 0.0008314180317 | G132: 0.0004362831107 | H132: 1.833408158 | I132: -3.842254267 | J132: -2.008846109
B133: 2.93956044 | C133: 0.02747252747 | D133: 0.9710322438 | E133: 0.0002668037471 | F133: 0.0008306570084 | G133: 0.0004360833931 | H133: 1.821181387 | I133: -3.856709361 | J133: -2.035527975
B134: 2.967032967 | C134: 0.02747252747 | D134: 0.9707655134 | E134: 0.0002667304595 | F134: 0.0008298966817 | G134: 0.0004358837669 | H134: 1.791108777 | I134: -3.846800106 | J134: -2.055691329
B135: 2.994505495 | C135: 0.02747252747 | D135: 0.9704988562 | E135: 0.0002666571919 | F135: 0.0008291370509 | G135: 0.0004356842321 | H135: 1.771877868 | I135: -3.854485059 | J135: -2.082607191
B136: 3.021978022 | C136: 0.02747252747 | D136: 0.9702322723 | E136: 0.0002665839445 | F136: 0.0008283781155 | G136: 0.0004354847886 | H136: 1.916979333 | I136: -3.308667356 | J136: -1.391688023
B137: 3.049450549 | C137: 0.02747252747 | D137: 0.9699657615 | E137: 0.0002665107173 | F137: 0.0008276198747 | G137: 0.0004352854365 | H137: 1.906796064 | I137: -3.284230782 | J137: -1.377434718
B138: 3.076923077 | C138: 0.02747252747 | D138: 0.969699324 | E138: 0.0002664375101 | F138: 0.0008268623279 | G138: 0.0004350861756 | H138: 1.883970707 | I138: -3.2303946 | J138: -1.346423893
B139: 3.104395604 | C139: 0.02747252747 | D139: 0.9694329597 | E139: 0.000266364323 | F139: 0.0008261054746 | G139: 0.0004348870059 | H139: 1.876356159 | I139: -3.152248783 | J139: -1.275892624
B140: 3.131868132 | C140: 0.02747252747 | D140: 0.9691666685 | E140: 0.0002662911561 | F140: 0.000825349314 | G140: 0.0004346879274 | H140: 1.844680868 | I140: -3.119316608 | J140: -1.27463574
B141: 3.159340659 | C141: 0.02747252747 | D141: 0.9689004505 | E141: 0.0002662180092 | F141: 0.0008245938456 | G141: 0.00043448894 | H141: 1.776480742 | I141: -3.075614839 | J141: -1.299134097
B142: 3.186813187 | C142: 0.02747252747 | D142: 0.9686343057 | E142: 0.0002661448824 | F142: 0.0008238390687 | G142: 0.0004342900437 | H142: 1.743386447 | I142: -3.045248417 | J142: -1.301861969
B143: 3.214285714 | C143: 0.02747252747 | D143: 0.9683682339 | E143: 0.0002660717757 | F143: 0.0008230849826 | G143: 0.0004340912385 | H143: 1.699516281 | I143: -3.021166517 | J143: -1.321650236
B144: 3.241758242 | C144: 0.02747252747 | D144: 0.9681022352 | E144: 0.0002659986891 | F144: 0.0008223315868 | G144: 0.0004338925243 | H144: 1.683475847 | I144: -2.984692244 | J144: -1.301216397
B145: 3.269230769 | C145: 0.02747252747 | D145: 0.9678363096 | E145: 0.0002659256226 | F145: 0.0008215788806 | G145: 0.000433693901 | H145: 1.644194432 | I145: -2.889172672 | J145: -1.24497824
B146: 3.296703297 | C146: 0.02747252747 | D146: 0.967570457 | E146: 0.0002658525762 | F146: 0.0008208268634 | G146: 0.0004334953687 | H146: 1.604310529 | I146: -2.843713112 | J146: -1.239402583
B147: 3.324175824 | C147: 0.02747252747 | D147: 0.9673046774 | E147: 0.0002657795498 | F147: 0.0008200755345 | G147: 0.0004332969272 | H147: 1.57957387 | I147: -2.782630286 | J147: -1.203056416
B148: 3.351648352 | C148: 0.02747252747 | D148: 0.9670389709 | E148: 0.0002657065434 | F148: 0.0008193248933 | G148: 0.0004330985766 | H148: 1.552831422 | I148: -2.737897069 | J148: -1.185065647
B149: 3.379120879 | C149: 0.02747252747 | D149: 0.9667733373 | E149: 0.0002656335572 | F149: 0.0008185749392 | G149: 0.0004329003168 | H149: 1.521538033 | I149: -2.68668285 | J149: -1.165144817
B150: 3.406593407 | C150: 0.02747252747 | D150: 0.9665077767 | E150: 0.0002655605909 | F150: 0.0008178256716 | G150: 0.0004327021477 | H150: 1.48049014 | I150: -2.662125993 | J150: -1.181635853
B151: 3.434065934 | C151: 0.02747252747 | D151: 0.9662422891 | E151: 0.0002654876447 | F151: 0.0008170770898 | G151: 0.0004325040694 | H151: 1.425077181 | I151: -2.621246542 | J151: -1.196169361
B152: 3.461538462 | C152: 0.02747252747 | D152: 0.9659768744 | E152: 0.0002654147186 | F152: 0.0008163291932 | G152: 0.0004323060817 | H152: 1.379207186 | I152: -2.611604175 | J152: -1.232396988
B153: 3.489010989 | C153: 0.02747252747 | D153: =EXP(-B153*FundingSpread/10000) -> 0.9657115326 | E153: 0.0002653418125 | F153: 0.0008155819812 | G153: 0.0004321081847 | H153: 1.346658646 | I153: -2.5884413 | J153: -1.241782654
B154: 3.516483516 | C154: 0.02747252747 | D154: 0.9654462636 | E154: 0.0002652689264 | F154: =EXP(-B153*CntrptySpread/10000/CntrptyLGD)-EXP(-B154*CntrptySpread/10000/CntrptyLGD) -> 0.0008148354531 | G154: =EXP(-B153*PartySpread/10000/PartyLGD)-EXP(-B154*PartySpread/10000/PartyLGD) -> 0.0004319103782 | H154: 1.4890126 | I154: -2.072876308 | J154: =H154+I154 -> -0.5838637087
B155: 3.543956044 | C155: =B155-B154 -> 0.02747252747 | D155: 0.9651810676 | E155: =D154-D155 -> 0.0002651960603 | F155: 0.0008140896084 | G155: 0.0004317126624 | H155: 1.469271335 | I155: -2.062801407 | J155: -0.5935300719
B156: 3.571428571 | C156: 0.02747252747 | D156: 0.9649159444 | E156: 0.0002651232143 | F156: 0.0008133444463 | G156: 0.000431515037 | H156: 1.408034879 | I156: -2.048763781 | J156: -0.6407289023
B157: 3.598901099 | C157: 0.02747252747 | D157: 0.964650894 | E157: 0.0002650503882 | F157: 0.0008125999663 | G157: 0.000431317502 | H157: 1.393532718 | I157: -2.02575755 | J157: -0.6322248323
B158: 3.626373626 | C158: 0.02747252747 | D158: 0.9643859164 | E158: 0.0002649775822 | F158: 0.0008118561678 | G158: 0.0004311200576 | H158: 1.358332793 | I158: -1.979277322 | J158: -0.6209445292
B159: 3.653846154 | C159: 0.02747252747 | D159: 0.9641210116 | E159: 0.0002649047961 | F159: 0.00081111305 | G159: 0.0004309227034 | H159: 1.324232475 | I159: -1.949513063 | J159: -0.6252805875
B160: 3.681318681 | C160: 0.02747252747 | D160: 0.9638561796 | E160: 0.0002648320301 | F160: 0.0008103706125 | G160: 0.0004307254397 | H160: 1.294923121 | I160: -1.908581614 | J160: -0.6136584937
B161: 3.708791209 | C161: 0.02747252747 | D161: 0.9635914203 | E161: 0.000264759284 | F161: 0.0008096288546 | G161: 0.0004305282662 | H161: 1.26942262 | I161: -1.856990762 | J161: -0.5875681424
B162: 3.736263736 | C162: 0.02747252747 | D162: 0.9633267337 | E162: 0.000264686558 | F162: 0.0008088877756 | G162: 0.000430331183 | H162: 1.217577271 | I162: -1.830784419 | J162: -0.6132071476
B163: 3.763736264 | C163: 0.02747252747 | D163: 0.9630621199 | E163: 0.0002646138519 | F163: 0.0008081473749 | G163: 0.00043013419 | H163: 1.212503675 | I163: -1.737630628 | J163: -0.525126953
B164: 3.791208791 | C164: 0.02747252747 | D164: 0.9627975787 | E164: 0.0002645411657 | F164: 0.000807407652 | G164: 0.0004299372872 | H164: 1.153961822 | I164: -1.703435883 | J164: -0.549474061
B165: 3.818681319 | C165: 0.02747252747 | D165: 0.9625331102 | E165: 0.0002644684996 | F165: 0.0008066686061 | G165: 0.0004297404745 | H165: 1.106886287 | I165: -1.658585513 | J165: -0.5516992265
B166: 3.846153846 | C166: 0.02747252747 | D166: 0.9622687144 | E166: 0.0002643958534 | F166: 0.0008059302367 | G166: 0.000429543752 | H166: 1.076694443 | I166: -1.62199881 | J166: -0.5453043662
B167: 3.873626374 | C167: 0.02747252747 | D167: 0.9620043911 | E167: 0.0002643232271 | F167: 0.0008051925432 | G167: 0.0004293471195 | H167: 1.053227235 | I167: -1.583637586 | J167: -0.5304103506
B168: 3.901098901 | C168: 0.02747252747 | D168: 0.9617401405 | E168: 0.0002642506208 | F168: 0.0008044555249 | G168: 0.0004291505769 | H168: 1.000426833 | I168: -1.56216516 | J168: -0.5617383269
B169: 3.928571429 | C169: 0.02747252747 | D169: 0.9614759625 | E169: 0.0002641780345 | F169: 0.0008037191812 | G169: 0.0004289541244 | H169: 0.9801920595 | I169: -1.556031298 | J169: -0.5758392388
B170: 3.956043956 | C170: 0.02747252747 | D170: 0.961211857 | E170: 0.000264105468 | F170: 0.0008029835116 | G170: 0.0004287577618 | H170: 0.9358198603 | I170: -1.545854409 | J170: -0.6100345486
B171: 3.983516484 | C171: 0.02747252747 | D171: 0.9609478241 | E171: 0.0002640329216 | F171: 0.0008022485153 | G171: 0.0004285614891 | H171: 0.9045450599 | I171: -1.54419408 | J171: -0.6396490197
B172: 4.010989011 | C172: 0.02747252747 | D172: 0.9606838637 | E172: 0.000263960395 | F172: 0.0008015141917 | G172: 0.0004283653062 | H172: 0.949844504 | I172: -1.367836914 | J172: -0.4179924098
B173: 4.038461538 | C173: 0.02747252747 | D173: 0.9604199758 | E173: 0.0002638878884 | F173: 0.0008007805404 | G173: 0.0004281692131 | H173: 1.04412728 | I173: -1.105019423 | J173: -0.0608921429
B174: 4.065934066 | C174: 0.02747252747 | D174: 0.9601561604 | E174: 0.0002638154017 | F174: 0.0008000475605 | G174: 0.0004279732098 | H174: 0.9895674754 | I174: -1.125910459 | J174: -0.1363429832
B175: 4.093406593 | C175: 0.02747252747 | D175: 0.9598924175 | E175: 0.0002637429349 | F175: 0.0007993152516 | G175: 0.0004277772963 | H175: 0.9485636515 | I175: -1.144195915 | J175: -0.195632264
B176: 4.120879121 | C176: 0.02747252747 | D176: 0.959628747 | E176: 0.000263670488 | F176: 0.0007985836129 | G176: 0.0004275814724 | H176: 0.9189143535 | I176: -1.149939588 | J176: -0.2310252342
B177: 4.148351648 | C177: 0.02747252747 | D177: 0.9593651489 | E177: 0.000263598061 | F177: 0.000797852644 | G177: 0.0004273857381 | H177: 0.9053598951 | I177: -1.160838411 | J177: -0.255478516
B178: 4.175824176 | C178: 0.02747252747 | D178: 0.9591016233 | E178: 0.0002635256539 | F178: 0.0007971223442 | G178: 0.0004271900935 | H178: 0.8701021092 | I178: -1.167135498 | J178: -0.297033389
B179: 4.203296703 | C179: 0.02747252747 | D179: 0.95883817 | E179: 0.0002634532666 | F179: 0.0007963927128 | G179: 0.0004269945384 | H179: 0.8283663287 | I179: -1.182682635 | J179: -0.3543163061
B180: 4.230769231 | C180: 0.02747252747 | D180: 0.9585747891 | E180: 0.0002633808993 | F180: 0.0007956637493 | G180: 0.0004267990728 | H180: 0.7859051918 | I180: -1.199659465 | J180: -0.413754273
B181: 4.258241758 | C181: 0.02747252747 | D181: 0.9583114806 | E181: 0.0002633085519 | F181: 0.000794935453 | G181: 0.0004266036967 | H181: 0.731501078 | I181: -1.232068356 | J181: -0.5005672775
B182: 4.285714286 | C182: 0.02747252747 | D182: 0.9580482443 | E182: 0.0002632362243 | F182: 0.0007942078233 | G182: 0.0004264084101 | H182: 0.7218583178 | I182: -1.185327963 | J182: -0.4634696451
B183: 4.313186813 | C183: 0.02747252747 | D183: 0.9577850804 | E183: 0.0002631639166 | F183: 0.0007934808597 | G183: 0.0004262132128 | H183: 0.6838171158 | I183: -1.203294619 | J183: -0.5194775036
B184: 4.340659341 | C184: 0.02747252747 | D184: 0.9575219888 | E184: 0.0002630916287 | F184: 0.0007927545615 | G184: 0.0004260181049 | H184: 0.6506290984 | I184: -1.222085003 | J184: -0.5714559049
B185: 4.368131868 | C185: 0.02747252747 | D185: =EXP(-B185*FundingSpread/10000) -> 0.9572589694 | E185: 0.0002630193607 | F185: 0.000792028928 | G185: 0.0004258230864 | H185: 0.6116081929 | I185: -1.243345967 | J185: -0.6317377745
B186: 4.395604396 | C186: 0.02747252747 | D186: 0.9569960223 | E186: 0.0002629471126 | F186: =EXP(-B185*CntrptySpread/10000/CntrptyLGD)-EXP(-B186*CntrptySpread/10000/CntrptyLGD) -> 0.0007913039588 | G186: =EXP(-B185*PartySpread/10000/PartyLGD)-EXP(-B186*PartySpread/10000/PartyLGD) -> 0.000425628157 | H186: 0.5808371246 | I186: -1.270403971 | J186: -0.6895668461
B187: 4.423076923 | C187: 0.02747252747 | D187: 0.9567331474 | E187: 0.0002628748843 | F187: 0.0007905796532 | G187: 0.000425433317 | H187: 0.5541237446 | I187: -1.3004048 | J187: -0.7462810557
B188: 4.450549451 | C188: 0.02747252747 | D188: 0.9564703447 | E188: 0.0002628026758 | F188: 0.0007898560105 | G188: 0.0004252385661 | H188: 0.5262007559 | I188: -1.332824743 | J188: -0.8066239874
B189: 4.478021978 | C189: 0.02747252747 | D189: 0.9562076143 | E189: 0.0002627304872 | F189: 0.0007891330303 | G189: 0.0004250439043 | H189: 0.4956650439 | I189: -1.374205541 | J189: -0.8785404974
B190: 4.505494505 | C190: 0.02747252747 | D190: 0.9559449559 | E190: 0.0002626583184 | F190: 0.0007884107117 | G190: 0.0004248493317 | H190: 0.5186498114 | I190: -1.221197606 | J190: -0.7025477947
B191: 4.532967033 | C191: 0.02747252747 | D191: 0.9556823698 | E191: 0.0002625861695 | F191: 0.0007876890544 | G191: 0.0004246548482 | H191: 0.6317762251 | I191: -0.9268968048 | J191: -0.2951205797
B192: 4.56043956 | C192: 0.02747252747 | D192: 0.9554198557 | E192: 0.0002625140403 | F192: 0.0007869680576 | G192: 0.0004244604536 | H192: 0.6220194223 | I192: -0.9271217161 | J192: -0.3051022938
B193: 4.587912088 | C193: 0.02747252747 | D193: 0.9551574138 | E193: 0.000262441931 | F193: 0.0007862477208 | G193: 0.0004242661481 | H193: 0.6090150356 | I193: -0.9314403718 | J193: -0.3224253362
B194: 4.615384615 | C194: 0.02747252747 | D194: 0.954895044 | E194: 0.0002623698414 | F194: 0.0007855280433 | G194: 0.0004240719315 | H194: 0.5860604871 | I194: -0.925198002 | J194: -0.3391375149
B195: 4.642857143 | C195: 0.02747252747 | D195: 0.9546327462 | E195: 0.0002622977717 | F195: 0.0007848090245 | G195: 0.0004238778038 | H195: 0.5707983634 | I195: -0.9252507838 | J195: -0.3544524204
B196: 4.67032967 | C196: 0.02747252747 | D196: 0.9543705205 | E196: 0.0002622257218 | F196: 0.0007840906639 | G196: 0.000423683765 | H196: 0.560353633 | I196: -0.9214336332 | J196: -0.3610800002
B197: 4.697802198 | C197: 0.02747252747 | D197: 0.9541083668 | E197: 0.0002621536917 | F197: 0.0007833729608 | G197: 0.000423489815 | H197: 0.5497241796 | I197: -0.9205592262 | J197: -0.3708350466
B198: 4.725274725 | C198: 0.02747252747 | D198: 0.9538462851 | E198: 0.0002620816813 | F198: 0.0007826559147 | G198: 0.0004232959538 | H198: 0.5437006478 | I198: -0.9174779212 | J198: -0.3737772734
B199: 4.752747253 | C199: 0.02747252747 | D199: 0.9535842754 | E199: 0.0002620096907 | F199: 0.0007819395249 | G199: 0.0004231021814 | H199: 0.5447958031 | I199: -0.9294768759 | J199: -0.3846810728
B200: 4.78021978 | C200: 0.02747252747 | D200: 0.9533223377 | E200: 0.0002619377199 | F200: 0.0007812237908 | G200: 0.0004229084976 | H200: 0.5747864325 | I200: -0.878353717 | J200: -0.3035672845
B201: 4.807692308 | C201: 0.02747252747 | D201: 0.9530604719 | E201: 0.0002618657689 | F201: 0.0007805087119 | G201: 0.0004227149025 | H201: 0.5768884064 | I201: -0.8782349192 | J201: -0.3013465128
B202: 4.835164835 | C202: 0.02747252747 | D202: 0.9527986781 | E202: 0.0002617938376 | F202: 0.0007797942875 | G202: 0.000422521396 | H202: 0.5735998193 | I202: -0.8785704761 | J202: -0.3049706568
B203: 4.862637363 | C203: 0.02747252747 | D203: 0.9525369561 | E203: 0.0002617219261 | F203: 0.000779080517 | G203: 0.0004223279781 | H203: 0.5662718468 | I203: -0.8820491011 | J203: -0.3157772543
B204: 4.89010989 | C204: 0.02747252747 | D204: 0.9522753061 | E204: 0.0002616500344 | F204: 0.0007783673999 | G204: 0.0004221346488 | H204: 0.5640830203 | I204: -0.891576113 | J204: -0.3274930927
B205: 4.917582418 | C205: 0.02747252747 | D205: 0.952013728 | E205: 0.0002615781624 | F205: 0.0007776549355 | G205: 0.0004219414079 | H205: 0.5603811796 | I205: -0.8996267427 | J205: -0.3392455631
B206: 4.945054945 | C206: 0.02747252747 | D206: 0.9517522216 | E206: 0.0002615063101 | F206: 0.0007769431232 | G206: 0.0004217482555 | H206: 0.5570885855 | I206: -0.9147935029 | J206: -0.3577049174
B207: 4.972527473 | C207: 0.02747252747 | D207: 0.9514907872 | E207: 0.0002614344776 | F207: 0.0007762319625 | G207: 0.0004215551916 | H207: 0.5537430473 | I207: -0.9320061446 | J207: -0.3782630973
B208: 5 | C208: 0.02747252747 | D208: 0.9512294245 | E208: 0.0002613626648 | F208: 0.0007755214528 | G208: 0.000421362216 | H208: 0.5497327131 | I208: -0.9574068338 | J208: -0.4076741207
